bitfinex/quotes_BTCUSD_20230106
["timestamp","ask_amount","ask_price","bid_price","bid_amount"]
[1673023833775,0.17806799,16837.0,16836.0,3.49373986]
[1673023834028,0.17806799,16837.0,16836.0,3.0878988]
[1673023834294,0.17806799,16837.0,16836.0,2.87887296]
[1673023834537,0.44515347,16837.0,16836.0,2.87887296]
[1673023835363,0.17806799,16837.0,16836.0,2.87887296]
[1673023839636,0.17806799,16837.0,16836.0,2.26922696]
[1673023840721,0.44515347,16837.0,16836.0,2.26922696]
[1673023840972,0.44515347,16837.0,16836.0,1.67526196]
[1673023841229,0.44515347,16837.0,16836.0,1.49996196]
[1673023842854,0.44515347,16837.0,16836.0,0.90599696]
[1673023843638,0.80123501,16837.0,16836.0,0.90599696]
[1673023843896,0.44515347,16837.0,16836.0,0.90599696]
[1673023844674,0.44515347,16837.0,16836.0,1.49996196]
[1673023844928,0.80123501,16837.0,16836.0,1.49996196]
[1673023845705,0.62316702,16837.0,16836.0,1.49996196]
[1673023846216,0.80094746,16837.0,16836.0,2.09392696]
[1673023846496,0.80094751,16837.0,16836.0,2.09392696]
[1673023846751,0.80094911,16837.0,16836.0,2.09384019]
[1673023847042,0.62316702,16837.0,16836.0,2.09384019]
[1673023848011,0.62316702,16837.0,16836.0,2.58294063]
[1673023848262,0.62316702,16837.0,16836.0,2.94063239]
[1673023848263,0.44490198,16837.0,16836.0,2.94063239]
[1673023849824,0.44490198,16837.0,16836.0,2.58294063]
[1673023851891,0.1778165,16837.0,16836.0,2.58294063]
[1673023852166,0.1778165,16837.0,16836.0,3.17690563]
[1673023853206,0.44490198,16837.0,16836.0,3.17690563]
[1673023853517,0.1778165,16837.0,16836.0,3.17690563]
[1673023854730,0.1778165,16837.0,16836.0,3.96235163]
[1673023854991,0.44490198,16838.0,16837.0,0.4]
[1673023855233,0.44490198,16838.0,16837.0,3.38948028]
[1673023855998,0.48590198,16838.0,16837.0,3.39148028]
[1673023856512,0.48590198,16838.0,16837.0,2.29273384]
[1673023856788,0.66416702,16838.0,16837.0,2.29273384]
[1673023858796,0.66416702,16838.0,16837.0,2.78183428]
[1673023859074,0.66416702,16838.0,16837.0,3.37576428]
[1673023859325,0.66416702,16838.0,16837.0,4.34056681]
[1673023859326,0.48618343,16838.0,16837.0,4.34056681]
[1673023861109,0.48618343,16838.0,16837.0,4.51616681]
[1673023861369,0.21909795,16838.0,16837.0,4.51616681]
[1673023862942,0.041,16838.0,16837.0,4.51616681]
[1673023863217,0.041,16838.0,16837.0,3.98969297]
[1673023863440,0.041,16838.0,16837.0,4.46439297]
[1673023863987,0.44518343,16840.0,16837.0,5.1186586]
[1673023864245,0.17809795,16839.0,16838.0,1.09874644]
[1673023864533,0.44518343,16839.0,16838.0,2.46223144]
[1673023864790,0.44518343,16839.0,16838.0,3.23252544]
[1673023865317,0.44518343,16839.0,16838.0,3.37152544]
[1673023865318,0.44818343,16839.0,16838.0,3.37152544]
[1673023865615,0.44818343,16839.0,16838.0,1.502485]
[1673023865907,0.62616702,16839.0,16838.0,0.908594]
[1673023866141,0.80413107,16839.0,16838.0,0.908594]
[1673023866436,0.80413107,16839.0,16838.0,0.3147]
[1673023868224,0.80413107,16839.0,16838.0,0.139]
[1673023868482,0.44804953,16839.0,16838.0,0.139]
[1673023869033,0.80418225,16839.0,16838.0,0.84875546]
[1673023869806,0.80418225,16839.0,16838.0,0.8486772]
[1673023870049,0.44804953,16839.0,16838.0,0.8486772]
[1673023871861,0.44804953,16839.0,16838.0,1.4425712]
[1673023872117,0.80417153,16839.0,16838.0,1.4425712]
[1673023872378,0.80417153,16839.0,16838.0,2.2836197]
[1673023872638,0.80417153,16839.0,16838.0,1.93167164]
[1673023873914,0.80417153,16839.0,16838.0,1.4425712]
[1673023875502,0.62614665,16839.0,16838.0,2.52556564]
[1673023876508,0.44801561,16839.0,16838.0,2.52556564]
[1673023876786,0.44801561,16839.0,16838.0,3.247812]
[1673023877021,0.44801561,16839.0,16838.0,3.857458]
[1673023877536,0.18099096,16839.0,16838.0,4.451352]
[1673023878060,0.003,16839.0,16838.0,4.751352]
[1673023878575,0.003,16839.0,16838.0,4.22489654]
[1673023879088,0.003,16839.0,16838.0,5.28459654]
[1673023879341,0.003,16839.0,16838.0,5.87854421]
[1673023881403,0.00651518,16841.0,16839.0,0.4]
[1673023881660,0.00651518,16841.0,16840.0,3.44761844]
[1673023882406,0.00651518,16841.0,16840.0,3.45611844]
[1673023882652,0.00851518,16841.0,16840.0,3.45611844]
[1673023883715,0.00651518,16841.0,16840.0,3.47411844]
[1673023883993,0.00651518,16841.0,16840.0,3.97850742]
[1673023884246,0.00951518,16841.0,16840.0,4.11850742]
[1673023886288,0.00951518,16841.0,16840.0,4.41850742]
[1673023886531,0.00951518,16841.0,16840.0,4.11850742]
[1673023887045,0.00951518,16841.0,16840.0,4.41850742]
[1673023887296,0.00951518,16841.0,16840.0,4.11850742]
[1673023887821,0.00951518,16841.0,16840.0,3.94360742]
[1673023899172,0.00951518,16841.0,16840.0,3.42121844]
[1673023899423,0.00951518,16841.0,16840.0,4.02354658]
[1673023906117,0.00951518,16841.0,16840.0,3.41390058]
[1673023911594,0.00951518,16841.0,16840.0,4.02354658]
[1673023912868,0.00951518,16841.0,16840.0,3.72121844]
[1673023913905,0.00951518,16841.0,16840.0,4.34763497]
[1673023914944,0.00951518,16841.0,16840.0,3.72121844]
[1673023916226,0.00951518,16841.0,16840.0,3.89671844]
[1673023916509,0.17799096,16842.0,16841.0,0.38967184]
[1673023916761,0.17799096,16842.0,16841.0,4.15231776]
[1673023917018,0.17799096,16842.0,16841.0,4.10171009]
[1673023917791,0.17799096,16842.0,16841.0,4.24071009]
[1673023918849,0.17799096,16842.0,16841.0,4.10171009]
[1673023919164,0.17799096,16842.0,16841.0,4.23971009]
[1673023919952,0.63657668,16843.0,16841.0,11.73971009]
[1673023920208,0.63657668,16843.0,16842.0,3.50969855]
[1673023920459,0.63657668,16843.0,16842.0,5.8805591]
[1673023920982,0.00864084,16844.0,16843.0,1.02314665]
[1673023921263,0.00864084,16844.0,16843.0,3.36026209]
[1673023921520,0.00864084,16844.0,16843.0,5.19225343]
[1673023921804,0.00864084,16844.0,16843.0,7.41065881]
[1673023922307,0.02235463,16844.0,16843.0,8.07340719]
[1673023922574,0.02235463,16844.0,16843.0,8.03358745]
[1673023922832,0.02235463,16844.0,16843.0,7.71763512]
[1673023923103,0.02235463,16844.0,16843.0,7.85563512]
[1673023923371,0.02235463,16844.0,16843.0,7.86948412]
[1673023924466,0.02235463,16844.0,16843.0,8.22498089]
[1673023924714,0.02235463,16844.0,16843.0,7.86948412]
[1673023925228,0.02235463,16844.0,16843.0,6.72541633]
[1673023925478,0.02235463,16844.0,16843.0,6.99196755]
[1673023925723,0.02235463,16844.0,16843.0,6.72541633]
[1673023926971,0.01422403,16845.0,16844.0,0.44470926]
[1673023927223,0.01422403,16845.0,16844.0,5.02892093]
[1673023928442,0.01422403,16845.0,16844.0,5.16792093]
[1673023928690,0.01422403,16845.0,16844.0,5.02892093]
[1673023928953,0.01422403,16845.0,16844.0,5.16792093]
[1673023932900,0.01422403,16845.0,16844.0,4.99152093]
[1673023935439,0.01422403,16845.0,16844.0,5.59163505]
[1673023935652,0.01422403,16845.0,16844.0,4.99152093]
[1673023938454,0.01422403,16845.0,16844.0,4.99181577]
[1673023938970,0.01422403,16845.0,16844.0,4.81541577]
[1673023940235,0.01422403,16845.0,16844.0,5.37565522]
[1673023941265,0.01422403,16845.0,16844.0,4.60690755]
[1673023941523,0.01422403,16845.0,16844.0,4.0466681]
[1673023941776,0.01422403,16845.0,16844.0,4.58247471]
[1673023942780,0.01422403,16845.0,16844.0,4.0466681]
[1673023943030,0.01422403,16845.0,16844.0,4.69363158]
[1673023943803,0.01422403,16845.0,16844.0,4.0466681]
[1673023945072,0.01422403,16845.0,16844.0,4.56413156]
[1673023945843,0.01422403,16845.0,16844.0,4.0466681]
[1673023946348,0.01422403,16845.0,16844.0,4.71331178]
[1673023947874,0.01422403,16845.0,16844.0,4.41331178]
[1673023950877,0.01422403,16845.0,16844.0,4.0466681]
[1673023951378,0.01048864,16846.0,16845.0,0.4]
[1673023951620,0.01048864,16846.0,16845.0,3.67785928]
[1673023951871,0.01048864,16846.0,16845.0,4.34702881]
[1673023953409,0.01048864,16846.0,16845.0,4.48602881]
[1673023954389,0.01048864,16846.0,16845.0,3.99692837]
[1673023954647,0.01048864,16846.0,16845.0,3.38728237]
[1673023955128,0.01048864,16846.0,16845.0,3.28273581]
[1673023955341,0.01048864,16846.0,16845.0,3.89238181]
[1673023958454,0.01048864,16846.0,16845.0,4.48602881]
[1673023959212,0.0908085,16847.0,16846.0,0.91246314]
[1673023959500,0.0908085,16847.0,16846.0,4.2636297]
[1673023959741,0.0908085,16847.0,16846.0,3.16623138]
[1673023960473,0.0908085,16847.0,16846.0,3.30523138]
[1673023961424,0.0908085,16847.0,16846.0,3.30552619]
[1673023963199,0.4469305,16847.0,16846.0,3.30552619]
[1673023963942,0.0908085,16847.0,16846.0,3.30552619]
[1673023964481,0.0908085,16847.0,16846.0,3.79327851]
[1673023964741,0.0908085,16847.0,16846.0,4.40292451]
[1673023965062,0.0908085,16847.0,16846.0,3.91517219]
[1673023965267,0.0908085,16847.0,16846.0,3.30552619]
[1673023967586,0.4469305,16847.0,16846.0,3.30552619]
[1673023968350,0.89198003,16847.0,16846.0,3.30523138]
[1673023968604,0.4469305,16847.0,16846.0,3.30523138]
[1673023968914,0.80117153,16847.0,16846.0,3.30523138]
[1673023969350,0.62316947,16847.0,16846.0,3.30523138]
[1673023969640,0.62316947,16847.0,16846.0,3.31373138]
[1673023972818,0.62316947,16847.0,16846.0,3.8014837]
[1673023973476,0.80124859,16847.0,16846.0,3.8014837]
[1673023974790,0.62316947,16847.0,16846.0,3.8014837]
[1673023975562,0.62316947,16847.0,16846.0,4.4111297]
[1673023976861,0.80117153,16847.0,16846.0,4.4111297]
[1673023977379,1.06841779,16847.0,16846.0,4.4111297]
[1673023977631,0.62336826,16847.0,16846.0,4.4111297]
[1673023979142,0.62336826,16847.0,16846.0,4.41142451]
[1673023980488,0.80155586,16847.0,16846.0,4.41133121]
[1673023980693,0.44543386,16847.0,16846.0,4.41133121]
[1673023981211,0.1781876,16847.0,16846.0,4.74528622]
[1673023982239,0.44543386,16847.0,16846.0,4.44528622]
[1673023982783,0.17816952,16848.0,16847.0,0.66938816]
[1673023983067,0.17816952,16848.0,16847.0,2.66844018]
[1673023983332,0.17816952,16848.0,16847.0,2.36844018]
[1673023983629,0.80154581,16849.0,16847.0,2.66844018]
[1673023983901,0.80154581,16849.0,16848.0,0.88499002]
[1673023984156,0.44542381,16849.0,16848.0,1.47853202]
[1673023984709,0.17816952,16849.0,16848.0,1.47853202]
[1673023985255,0.17816952,16849.0,16848.0,0.86888602]
[1673023985525,0.17816952,16849.0,16848.0,1.55363594]
[1673023986044,0.17816952,16849.0,16848.0,1.69363594]
[1673023986570,0.44542381,16849.0,16848.0,1.69363594]
[1673023987086,0.17816952,16849.0,16848.0,1.69363594]
[1673023987346,0.17816952,16849.0,16848.0,2.18125974]
[1673023988158,0.4614105,16850.0,16849.0,0.4]
[1673023988687,0.4614105,16850.0,16849.0,2.58360477]
[1673023988689,0.8175325,16850.0,16849.0,1.97395877]
[1673023988978,0.81732118,16850.0,16849.0,1.97395877]
[1673023989246,0.46119918,16850.0,16849.0,1.97395877]
[1673023989498,0.46119918,16850.0,16849.0,2.11595877]
[1673023990561,0.46119918,16850.0,16849.0,2.70946577]
[1673023990819,0.46119918,16850.0,16849.0,3.35086671]
[1673023991619,0.19394489,16850.0,16849.0,3.35086671]
[1673023992992,0.46119918,16850.0,16849.0,3.35086671]
[1673023993266,0.19394489,16850.0,16849.0,3.35086671]
[1673023993805,0.46119918,16850.0,16849.0,3.35086671]
[1673023994588,0.63936298,16850.0,16849.0,2.75735971]
[1673023995385,0.63936298,16850.0,16849.0,2.35735971]
[1673023996132,0.63936298,16850.0,16849.0,1.71595877]
[1673023996600,0.63936298,16850.0,16849.0,1.337514]
[1673023996859,0.81715822,16850.0,16849.0,1.329014]
[1673023997384,0.36878669,16850.0,16849.0,0.142]
[1673023997630,0.81347533,16850.0,16849.0,0.142]
[1673023997881,0.36878669,16850.0,16849.0,0.142]
[1673023998393,0.81347672,16850.0,16849.0,0.2422363]
[1673023999404,0.36878669,16850.0,16849.0,0.2422363]
[1673024000881,0.81348504,16850.0,16849.0,0.83603806]
[1673024002164,1.16925695,16850.0,16849.0,0.83603806]
[1673024002916,1.16925695,16850.0,16849.0,0.8357433]
[1673024003187,0.81348504,16850.0,16849.0,0.8357433]
[1673024004189,0.81348504,16850.0,16849.0,0.735507]
[1673024004473,0.81348504,16850.0,16849.0,0.73580176]
[1673024004708,0.81348504,16850.0,16849.0,0.735507]
[1673024006479,0.81348504,16850.0,16849.0,0.73540849]
[1673024006985,0.81348504,16850.0,16849.0,0.14190149]
[1673024007227,0.81348504,16850.0,16849.0,0.34065474]
[1673024007486,0.36878669,16850.0,16849.0,0.34065474]
[1673024007798,0.36878669,16850.0,16849.0,0.14190149]
[1673024008000,0.19238669,16850.0,16849.0,0.14190149]
[1673024009050,0.6372298,16850.0,16849.0,0.14190149]
[1673024009285,0.6372298,16850.0,16849.0,0.73540849]
[1673024009570,0.19238669,16850.0,16849.0,0.43343211]
[1673024009801,0.19238669,16850.0,16849.0,0.14190149]
[1673024012062,0.7259098,16850.0,16849.0,0.14190149]
[1673024019847,0.01301214,16851.0,16849.0,0.14190149]
[1673024019848,0.35892194,16851.0,16849.0,0.14190149]
[1673024020099,0.53532194,16851.0,16849.0,0.14190149]
[1673024020358,0.53532194,16851.0,16850.0,0.01419015]
[1673024021159,0.35892194,16851.0,16850.0,0.01419015]
[1673024021913,0.35892194,16851.0,16850.0,0.01519015]
[1673024023243,0.35892194,16851.0,16850.0,0.001]
[1673024028429,1.37739306,16852.0,16850.0,0.001]
[1673024028430,0.373072,16852.0,16850.0,1.34324814]
[1673024028702,0.373072,16852.0,16850.0,0.74977714]
[1673024028961,0.44505834,16851.0,16850.0,0.74977714]
[1673024029214,0.44505834,16851.0,16850.0,0.74877714]
[1673024029471,0.80107633,16851.0,16850.0,1.43507509]
[1673024029756,0.80107633,16851.0,16850.0,2.04472109]
[1673024030031,0.80107633,16851.0,16850.0,2.63819209]
[1673024031086,0.80107633,16851.0,16850.0,2.13704451]
[1673024031838,0.80107633,16851.0,16850.0,2.62301709]
[1673024032090,0.80107633,16851.0,16850.0,1.99891451]
[1673024032354,0.44505834,16851.0,16850.0,1.99891451]
[1673024032865,0.44505834,16851.0,16850.0,1.187942]
[1673024033130,0.373072,16852.0,16850.0,1.187942]
[1673024033391,0.373072,16852.0,16850.0,0.594471]
[1673024033678,0.35892194,16851.0,16850.0,0.594471]
[1673024033906,0.35892194,16851.0,16850.0,0.001]
[1673024034174,0.35892194,16851.0,16849.0,1.86730853]
[1673024034434,0.35892194,16851.0,16849.0,2.15339098]
[1673024035038,0.44509916,16850.0,16849.0,2.15339098]
[1673024035243,0.80116624,16850.0,16849.0,2.63936356]
[1673024035462,0.80116624,16850.0,16849.0,2.22339098]
[1673024035983,0.80116624,16850.0,16849.0,2.15339098]
[1673024036495,0.44509916,16850.0,16849.0,2.15339098]
[1673024036743,0.80117059,16850.0,16849.0,2.15339098]
[1673024036988,0.80117059,16850.0,16849.0,2.29539098]
[1673024037245,0.44509916,16850.0,16849.0,1.328981]
[1673024037497,0.35892194,16851.0,16849.0,0.142]
[1673024037754,0.35892194,16851.0,16849.0,0.735507]
[1673024038011,0.35892194,16851.0,16849.0,0.142]
[1673024038281,0.35892194,16851.0,16848.0,1.78073299]
[1673024038532,0.35892194,16851.0,16849.0,0.07]
[1673024039060,0.95236394,16851.0,16849.0,0.07]
[1673024039818,0.95236394,16851.0,16848.0,1.18721099]
[1673024039819,1.54579994,16851.0,16848.0,1.18721099]
[1673024040077,0.80119005,16849.0,16848.0,0.84323841]
[1673024040319,0.44510558,16849.0,16848.0,0.70123841]
[1673024041085,0.44510558,16849.0,16848.0,0.84123841]
[1673024041591,0.44510558,16849.0,16848.0,1.43478041]
[1673024042353,0.44510558,16849.0,16848.0,1.72692385]
[1673024043375,0.44510558,16849.0,16848.0,0.14]
[1673024043631,0.95239594,16850.0,16848.0,0.13991256]
[1673024044142,0.95239594,16850.0,16848.0,0.73345456]
[1673024044143,0.44509661,16849.0,16848.0,0.73345456]
[1673024044658,0.44509661,16849.0,16848.0,0.73345256]
[1673024044877,0.44509661,16849.0,16848.0,0.59354]
[1673024045171,0.44509661,16849.0,16848.0,0.73354]
[1673024045421,0.35892194,16850.0,16848.0,0.73354]
[1673024045690,0.44508717,16849.0,16848.0,0.97500442]
[1673024046201,0.95239594,16850.0,16848.0,0.24146442]
[1673024046522,0.95239594,16850.0,16848.0,0.14]
[1673024046933,0.95239594,16850.0,16847.0,2.16707682]
[1673024047222,1.06818951,16848.0,16847.0,3.35417082]
[1673024047484,0.62311055,16848.0,16847.0,2.37509824]
[1673024047743,0.62311055,16848.0,16847.0,3.15622064]
[1673024049211,0.62311055,16848.0,16847.0,2.80924806]
[1673024050343,0.80114213,16848.0,16847.0,2.80924806]
[1673024050536,0.62309385,16848.0,16847.0,2.80924806]
[1673024051253,0.62309385,16848.0,16847.0,2.21569006]
[1673024051524,1.06817281,16848.0,16847.0,2.21569006]
[1673024051786,0.80114213,16848.0,16847.0,2.21569006]
[1673024052823,0.80114213,16848.0,16847.0,1.92054024]
[1673024053321,0.80114213,16848.0,16847.0,0.139]
[1673024053578,0.1764,16848.0,16847.0,0.139]
[1673024054937,0.53532194,16848.0,16847.0,0.139]
[1673024055483,1.12886394,16848.0,16847.0,0.139]
[1673024055750,1.72240594,16848.0,16847.0,0.139]
[1673024056551,1.89850594,16848.0,16847.0,0.139]
[1673024056807,3.89850594,16848.0,16847.0,0.139]
[1673024058372,4.49204794,16848.0,16847.0,0.139]
[1673024059663,4.433126,16848.0,16847.0,0.139]
[1673024059944,5.50533283,16848.0,16847.0,0.139]
[1673024060205,6.09920996,16848.0,16847.0,0.139]
[1673024061036,5.19869313,16848.0,16847.0,0.139]
[1673024061543,5.49869313,16848.0,16847.0,0.139]
[1673024061813,6.09920996,16848.0,16847.0,0.139]
[1673024063692,5.49869313,16848.0,16847.0,0.139]
[1673024064204,4.904816,16848.0,16847.0,0.13893333]
[1673024066566,5.50533283,16848.0,16847.0,0.13893333]
[1673024066821,4.904816,16848.0,16847.0,0.13893333]
[1673024067623,5.50533283,16848.0,16847.0,0.13893333]
[1673024068136,5.32893283,16848.0,16847.0,0.13893333]
[1673024068395,5.92280996,16848.0,16847.0,0.13893333]
[1673024069153,5.32229313,16848.0,16847.0,0.13893333]
[1673024070207,5.92280996,16848.0,16847.0,0.13893333]
[1673024071238,5.32229313,16848.0,16847.0,0.13893333]
[1673024071530,5.35160404,16848.0,16847.0,0.13893333]
[1673024072036,5.95212087,16848.0,16843.0,0.0039446]
[1673024072293,0.443743,16844.0,16843.0,0.58477649]
[1673024072582,1.037426,16844.0,16843.0,0.53416882]
[1673024073133,0.1774972,16844.0,16843.0,0.54501882]
[1673024073384,0.593683,16844.0,16843.0,0.54501882]
[1673024073632,1.631074,16845.0,16844.0,0.66135846]
[1673024074225,0.01,16844.0,16843.0,0.6757042]
[1673024074474,1.631074,16845.0,16843.0,0.6757042]
[1673024074475,1.631074,16845.0,16843.0,0.6657042]
[1673024074737,1.641074,16845.0,16844.0,0.011]
[1673024074995,1.3748282,16845.0,16844.0,0.011]
[1673024075252,1.047408,16845.0,16844.0,0.011]
[1673024075503,1.037408,16845.0,16843.0,0.6657042]
[1673024075760,1.037408,16845.0,16843.0,0.6767042]
[1673024075761,1.047408,16845.0,16843.0,0.6767042]
[1673024076276,0.7711622,16845.0,16843.0,0.6657042]
[1673024076520,0.7711622,16845.0,16843.0,0.94026397]
[1673024077316,0.7711622,16845.0,16844.0,0.011]
[1673024077583,0.1874972,16845.0,16844.0,0.36513767]
[1673024077862,0.02,16845.0,16844.0,1.03963978]
[1673024078112,0.443743,16847.0,16844.0,1.82741585]
[1673024078361,0.009,16845.0,16844.0,1.16008027]
[1673024078622,0.1774972,16848.0,16844.0,2.72049885]
[1673024078880,0.1774972,16848.0,16846.0,0.1749]
[1673024079176,3.4710874,16849.0,16847.0,0.7141004]
[1673024079404,3.116093,16849.0,16847.0,0.76470807]
[1673024079654,0.1774972,16848.0,16847.0,0.76470807]
[1673024079911,0.1774972,16848.0,16847.0,0.7141004]
[1673024080172,0.1774972,16848.0,16847.0,0.8515977]
[1673024080937,0.1854972,16848.0,16847.0,0.8525977]
[1673024081175,0.451743,16848.0,16847.0,0.8525977]
[1673024081437,0.451743,16848.0,16847.0,0.7151004]
[1673024085028,0.6292402,16848.0,16847.0,0.7151004]
[1673024085275,0.80688853,16848.0,16847.0,0.7151004]
[1673024085535,0.45189413,16848.0,16847.0,0.7151004]
[1673024086573,0.45189413,16848.0,16847.0,0.9120588]
[1673024087171,0.18564833,16848.0,16847.0,0.7151004]
[1673024088723,0.008,16848.0,16847.0,1.96964998]
[1673024088978,0.008,16848.0,16847.0,2.57929598]
[1673024089239,0.008,16848.0,16847.0,3.17287298]
[1673024089684,0.44389413,16849.0,16847.0,3.17187298]
[1673024089951,0.44389413,16849.0,16848.0,1.1032333]
[1673024090198,0.44389413,16849.0,16848.0,2.58274788]
[1673024090735,0.44389413,16849.0,16848.0,2.0967753]
[1673024091006,0.17764833,16849.0,16848.0,2.0967753]
[1673024091267,0.17764833,16849.0,16848.0,1.4871293]
[1673024091520,0.18564833,16849.0,16848.0,1.4881293]
[1673024091771,0.18564833,16849.0,16848.0,1.0881293]
[1673024092084,0.45189413,16849.0,16848.0,0.4945873]
[1673024092320,0.45189413,16849.0,16848.0,0.770942]
[1673024093055,0.18564833,16849.0,16848.0,0.770942]
[1673024093331,0.45189413,16849.0,16848.0,0.770942]
[1673024093553,0.45189413,16849.0,16848.0,0.1774]
[1673024094063,0.80688853,16849.0,16848.0,0.1774]
[1673024094588,0.6292402,16849.0,16848.0,0.1774]
[1673024095084,0.45186307,16849.0,16848.0,0.1774]
[1673024095332,0.80685747,16849.0,16848.0,0.1774]
[1673024095582,0.6292402,16849.0,16848.0,0.001]
[1673024095839,0.80685788,16849.0,16848.0,0.001]
[1673024096365,0.6212402,16849.0,16848.0,0.20786084]
[1673024096614,0.80685786,16849.0,16848.0,0.20886084]
[1673024097199,0.45186346,16849.0,16848.0,0.20886084]
[1673024097413,0.80685786,16849.0,16848.0,0.001]
[1673024097657,0.6292402,16849.0,16848.0,0.001]
[1673024097923,0.62916666,16849.0,16848.0,0.001]
[1673024098198,0.8067374,16849.0,16848.0,0.001]
[1673024101293,0.3629944,16849.0,16848.0,1.07753464]
[1673024101541,0.008,16849.0,16848.0,2.33816722]
[1673024101802,0.18557025,16849.0,16848.0,1.85219464]
[1673024102053,0.18557025,16849.0,16848.0,1.06614864]
[1673024102603,0.18657025,16849.0,16848.0,1.06814864]
[1673024103621,0.17757025,16849.0,16848.0,1.06614864]
[1673024103874,0.18657025,16849.0,16848.0,1.06814864]
[1673024105393,0.18657025,16849.0,16848.0,0.87973144]
[1673024106962,0.45296811,16849.0,16848.0,0.87973144]
[1673024109241,0.45296811,16849.0,16848.0,1.47327344]
[1673024109764,0.48223692,16849.0,16848.0,1.47327344]
[1673024110527,0.48223692,16849.0,16848.0,2.06681544]
[1673024111031,0.45296811,16849.0,16848.0,1.89211544]
[1673024111285,0.63039226,16849.0,16848.0,1.89211544]
[1673024112027,0.80812242,16849.0,16848.0,1.89211544]
[1673024112687,0.45312802,16849.0,16848.0,1.89211544]
[1673024113130,0.27539786,16849.0,16848.0,2.15823168]
[1673024113386,0.63039226,16849.0,16848.0,2.15823168]
[1673024114440,0.45321061,16849.0,16848.0,2.15823168]
[1673024114946,1.07413526,16849.0,16848.0,2.15823168]
[1673024115192,0.8077374,16849.0,16848.0,2.15823168]
[1673024115455,0.63086461,16849.0,16848.0,2.15823168]
[1673024115731,0.63086461,16849.0,16848.0,1.89211544]
[1673024116983,0.8077374,16849.0,16848.0,1.89211544]
[1673024118813,0.452743,16849.0,16848.0,1.89211544]
[1673024121098,0.452743,16849.0,16848.0,2.06851544]
[1673024123858,0.80893261,16849.0,16848.0,2.06851544]
[1673024124180,0.80893261,16849.0,16848.0,2.33472168]
[1673024124625,0.80893261,16849.0,16848.0,2.82069426]
[1673024124882,0.80893261,16849.0,16848.0,3.43034026]
[1673024125870,0.80893261,16849.0,16848.0,3.43022536]
[1673024126138,0.80893261,16849.0,16848.0,4.02376736]
[1673024126632,0.80893261,16849.0,16848.0,3.53779478]
[1673024126888,0.80893261,16849.0,16848.0,2.82057936]
[1673024127140,0.80893261,16849.0,16848.0,2.33460678]
[1673024127410,0.80893261,16849.0,16848.0,2.94425278]
[1673024127672,0.80893261,16849.0,16848.0,2.33460678]
[1673024128018,0.80893261,16849.0,16848.0,2.82057936]
[1673024128202,0.63237789,16849.0,16848.0,2.82057936]
[1673024129483,0.66282458,16849.0,16848.0,2.33460678]
[1673024129735,1.10654271,16849.0,16848.0,2.33460678]
[1673024129991,0.66279971,16849.0,16848.0,2.33460678]
[1673024131013,0.63235302,16849.0,16848.0,2.33460678]
[1673024132054,0.80893261,16849.0,16848.0,2.33460678]
[1673024132293,1.06707208,16849.0,16848.0,2.33260678]
[1673024132535,0.63232908,16849.0,16848.0,2.33460678]
[1673024133284,0.64541306,16849.0,16848.0,2.33460678]
[1673024133529,0.64541306,16849.0,16848.0,2.82057936]
[1673024134718,0.82347991,16849.0,16848.0,2.82057936]
[1673024134963,0.64541306,16849.0,16848.0,2.33460678]
[1673024135224,1.08915606,16849.0,16848.0,2.33460678]
[1673024135467,0.82201659,16849.0,16848.0,2.33460678]
[1673024137261,1.08913632,16849.0,16848.0,2.33460678]
[1673024137524,0.82201659,16849.0,16848.0,1.74106478]
[1673024137792,0.46582698,16849.0,16848.0,1.47485854]
[1673024140398,0.02208398,16849.0,16848.0,1.47485854]
[1673024141170,0.16692398,16849.0,16848.0,0.88131654]
[1673024142189,0.16692398,16849.0,16848.0,0.1793]
[1673024142442,1.29292258,16849.0,16848.0,0.0029]
[1673024144245,1.29292258,16849.0,16848.0,0.0009]
[1673024144503,2.19830572,16849.0,16848.0,0.0009]
[1673024144751,1.52893798,16849.0,16848.0,0.0029]
[1673024145004,2.0631558,16849.0,16848.0,0.0029]
[1673024145524,2.09220205,16849.0,16848.0,0.0029]
[1673024146000,1.2946488,16849.0,16848.0,0.0029]
[1673024146743,1.8881558,16849.0,16848.0,0.0029]
[1673024147494,1.8881558,16849.0,16848.0,0.0027858]
[1673024147743,1.2946488,16849.0,16848.0,0.0027858]
[1673024148745,0.76043098,16849.0,16848.0,0.0027858]
[1673024149241,0.76043098,16849.0,16848.0,0.07153324]
[1673024149745,1.2946488,16849.0,16848.0,0.07153324]
[1673024149994,1.2946488,16849.0,16848.0,0.0027858]
[1673024150488,0.76043098,16849.0,16848.0,0.0027858]
[1673024150983,1.2946488,16849.0,16848.0,0.0027858]
[1673024151936,1.8881558,16849.0,16848.0,0.0027858]
[1673024152186,1.2946488,16849.0,16848.0,0.0027858]
[1673024154199,0.76043098,16849.0,16848.0,0.0027858]
[1673024158216,1.11043098,16849.0,16848.0,0.0027858]
[1673024159411,1.6446488,16849.0,16848.0,0.0027858]
[1673024162000,1.6446488,16849.0,16846.0,1.07956658]
[1673024162301,0.62295828,16847.0,16846.0,1.41353844]
[1673024162519,0.80094636,16847.0,16846.0,1.60701638]
[1673024162758,1.06791759,16847.0,16846.0,1.01342238]
[1673024163011,0.80094636,16847.0,16846.0,1.01342238]
[1673024163256,0.81427165,16847.0,16846.0,1.01342238]
[1673024163541,0.81427165,16847.0,16846.0,0.67945052]
[1673024164310,0.81427165,16847.0,16846.0,0.002]
[1673024164311,0.84627165,16847.0,16846.0,0.002]
[1673024164560,0.49029549,16847.0,16846.0,0.002]
[1673024164832,0.49029549,16847.0,16846.0,0.60028769]
[1673024165088,0.84624907,16847.0,16846.0,0.60028769]
[1673024166390,0.84624907,16847.0,16846.0,0.84633256]
[1673024166886,0.84624907,16847.0,16846.0,0.60028769]
[1673024167662,0.49029549,16847.0,16846.0,0.60028769]
[1673024168165,0.49029549,16847.0,16846.0,0.002]
[1673024168417,1.08387249,16847.0,16846.0,0.002]
[1673024169721,0.49029549,16847.0,16846.0,0.002]
[1673024170494,0.49029549,16847.0,16846.0,0.69824963]
[1673024171247,0.84623875,16847.0,16846.0,0.95409009]
[1673024171518,0.84623875,16847.0,16846.0,0.69824963]
[1673024172781,0.49029549,16847.0,16846.0,0.69824963]
[1673024178379,0.49029549,16847.0,16846.0,0.002]
[1673024178634,0.19016529,16847.0,16846.0,0.002]
[1673024179172,0.72438311,16847.0,16846.0,0.002]
[1673024179416,1.31796011,16847.0,16846.0,0.002]
[1673024179675,0.78374229,16847.0,16846.0,0.002]
[1673024179927,1.31796011,16847.0,16846.0,0.002]
[1673024181970,0.78374229,16847.0,16846.0,0.002]
[1673024182888,1.31796011,16847.0,16846.0,0.002]
[1673024183148,0.78374229,16847.0,16846.0,0.002]
[1673024183403,1.31796011,16847.0,16846.0,0.002]
[1673024184700,0.78374229,16847.0,16846.0,0.002]
[1673024185215,1.31796011,16847.0,16846.0,0.002]